[Event "*** Titled Tuesday Blitz"]
[Site "Chess.com"]
[Date "2020.05.12"]
[Round "4"]
[White "korbul"]
[Black "kuban1991"]
[Result "0-1"]
[WhiteElo "2571"]
[BlackElo "2738"]
[TimeControl "180+1"]
[EndTime "10:39:12 PDT"]
[Termination "kuban1991 won by resignation"]

1. d4 {[%clk 0:03:00.9]} 1... g6 {[%clk 0:02:59.5]} 2. e4 {[%clk 0:03:00.4]}
2... Bg7 {[%clk 0:02:59.9]} 3. Nc3 {[%clk 0:03:00.6]} 3... c6 {[%clk 0:03:00.2]}
4. h3 {[%clk 0:02:58.2]} 4... d5 {[%clk 0:03:00.4]} 5. e5 {[%clk 0:02:58.4]}
5... c5 {[%clk 0:02:55.8]} 6. dxc5 {[%clk 0:02:56.1]} 6... d4 {[%clk 0:02:55.6]}
7. Ne4 {[%clk 0:02:54.5]} 7... Bxe5 {[%clk 0:02:51]} 8. Nf3 {[%clk 0:02:53.5]}
8... Bg7 {[%clk 0:02:51.4]} 9. Bg5 {[%clk 0:02:32.1]} 9... h6 {[%clk 0:02:40.3]}
10. Bh4 {[%clk 0:02:05.8]} 10... g5 {[%clk 0:02:30.9]} 11. Bg3 {[%clk 0:02:00]}
11... Nc6 {[%clk 0:02:17.4]} 12. Bc4 {[%clk 0:01:41.2]} 12... Qa5+ {[%clk
0:01:57.9]} 13. Qd2 {[%clk 0:01:36.2]} 13... Qxd2+ {[%clk 0:01:57.1]} 14. Nexd2
{[%clk 0:01:34.6]} 14... Bf5 {[%clk 0:01:48.9]} 15. O-O-O {[%clk 0:01:31.7]}
15... e5 {[%clk 0:01:32.2]} 16. Rhe1 {[%clk 0:01:29.7]} 16... f6 {[%clk
0:01:32.1]} 17. b4 {[%clk 0:00:44.8]} 17... Nge7 {[%clk 0:01:18.3]} 18. a3
{[%clk 0:00:38.9]} 18... O-O-O {[%clk 0:01:07.6]} 19. Ne4 {[%clk 0:00:38]} 19...
Bxe4 {[%clk 0:00:53.8]} 20. Rxe4 {[%clk 0:00:38.9]} 20... Nd5 {[%clk 0:00:45.8]}
21. Bxd5 {[%clk 0:00:31.7]} 21... Rxd5 {[%clk 0:00:46.7]} 22. Nd2 {[%clk
0:00:31.9]} 22... f5 {[%clk 0:00:43.1]} 23. Ree1 {[%clk 0:00:31.4]} 23... e4
{[%clk 0:00:42]} 24. f3 {[%clk 0:00:31.5]} 24... e3 {[%clk 0:00:41.1]} 25. Nc4
{[%clk 0:00:31]} 25... f4 {[%clk 0:00:41]} 26. Bh2 {[%clk 0:00:31.3]} 26... Rhd8
{[%clk 0:00:40.6]} 27. Rd3 {[%clk 0:00:30.2]} 27... h5 {[%clk 0:00:35.4]} 28. h4
{[%clk 0:00:28.4]} 28... Bf6 {[%clk 0:00:35.2]} 29. hxg5 {[%clk 0:00:28.1]}
29... Bxg5 {[%clk 0:00:36.1]} 30. Kb2 {[%clk 0:00:26.9]} 30... Kc7 {[%clk
0:00:31.8]} 31. g3 {[%clk 0:00:26.7]} 31... fxg3 {[%clk 0:00:22.4]} 32. Bxg3+
{[%clk 0:00:26.5]} 32... Kd7 {[%clk 0:00:21.4]} 33. Bd6 {[%clk 0:00:23.3]} 33...
b5 {[%clk 0:00:18.4]} 34. cxb6 {[%clk 0:00:18.3]} 34... Rxd6 {[%clk 0:00:18.4]}
35. Nxd6 {[%clk 0:00:17.3]} 35... Kxd6 {[%clk 0:00:19.1]} 36. bxa7 {[%clk
0:00:14.5]} 36... Ra8 {[%clk 0:00:19.6]} 37. c3 {[%clk 0:00:14]} 37... Rxa7
{[%clk 0:00:19.1]} 38. cxd4 {[%clk 0:00:14.2]} 38... Kd5 {[%clk 0:00:19.7]} 39.
Rc1 {[%clk 0:00:14]} 39... e2 {[%clk 0:00:11.4]} 40. Re1 {[%clk 0:00:12.7]}
40... Re7 {[%clk 0:00:10.5]} 41. b5 {[%clk 0:00:11.3]} 41... Nxd4 {[%clk
0:00:10.9]} 42. Kc3 {[%clk 0:00:11.2]} 42... Bf6 {[%clk 0:00:11.4]} 43. Rd2
{[%clk 0:00:10.3]} 43... Kc5 {[%clk 0:00:11.4]} 44. Kd3 {[%clk 0:00:09.6]} 44...
Nxf3 {[%clk 0:00:11.2]} 45. Rdxe2 {[%clk 0:00:08.7]} 45... Nxe1+ {[%clk
0:00:10.6]} 46. Rxe1 {[%clk 0:00:09.6]} 46... Rxe1 {[%clk 0:00:10.5]} 0-1

[Event "*** Titled Tuesday Blitz"]
[Site "Chess.com"]
[Date "2020.05.12"]
[Round "4"]
[White "mariangie523"]
[Black "zala02"]
[Result "0-1"]
[WhiteElo "2044"]
[BlackElo "2250"]
[TimeControl "180+1"]
[EndTime "10:39:13 PDT"]
[Termination "zala02 won by checkmate"]

1. e4 {[%clk 0:01:42.5]} 1... c5 {[%clk 0:02:58.7]} 2. Nf3 {[%clk 0:01:41.9]}
2... Nc6 {[%clk 0:02:57.5]} 3. d4 {[%clk 0:01:41.9]} 3... cxd4 {[%clk
0:02:55.9]} 4. Nxd4 {[%clk 0:01:42.6]} 4... Nf6 {[%clk 0:02:55.5]} 5. f3 {[%clk
0:01:42.2]} 5... e5 {[%clk 0:02:44.8]} 6. Nb5 {[%clk 0:01:40.7]} 6... d6 {[%clk
0:02:44.4]} 7. c4 {[%clk 0:01:40.5]} 7... a6 {[%clk 0:02:31.5]} 8. N5a3 {[%clk
0:01:24.4]} 8... Be7 {[%clk 0:02:26.7]} 9. Nc3 {[%clk 0:01:21.3]} 9... Be6
{[%clk 0:02:25.4]} 10. Be3 {[%clk 0:01:16.2]} 10... O-O {[%clk 0:02:06.7]} 11.
Be2 {[%clk 0:01:15.5]} 11... Nd7 {[%clk 0:01:57.7]} 12. Qd2 {[%clk 0:01:09.3]}
12... Rc8 {[%clk 0:01:55.1]} 13. Nc2 {[%clk 0:01:04.5]} 13... f5 {[%clk
0:01:15.4]} 14. exf5 {[%clk 0:01:04.4]} 14... Bxf5 {[%clk 0:01:15.1]} 15. O-O
{[%clk 0:01:00.4]} 15... Kh8 {[%clk 0:01:09]} 16. Rad1 {[%clk 0:00:53]} 16...
Nf6 {[%clk 0:01:07.7]} 17. Rfe1 {[%clk 0:00:39.6]} 17... Qd7 {[%clk 0:01:05.1]}
18. Na4 {[%clk 0:00:33.1]} 18... Rcd8 {[%clk 0:01:02]} 19. Bb6 {[%clk
0:00:29.6]} 19... Rde8 {[%clk 0:01:01.5]} 20. Qe3 {[%clk 0:00:26.7]} 20... Qe6
{[%clk 0:00:51.8]} 21. Qd2 {[%clk 0:00:23.6]} 21... Qf7 {[%clk 0:00:47.6]} 22.
Nc3 {[%clk 0:00:20.6]} 22... Be6 {[%clk 0:00:39.4]} 23. Ne3 {[%clk 0:00:20.1]}
23... Nh5 {[%clk 0:00:34.9]} 24. Ned5 {[%clk 0:00:16.7]} 24... Nf4 {[%clk
0:00:30.3]} 25. Nxf4 {[%clk 0:00:13.4]} 25... exf4 {[%clk 0:00:29.1]} 26. Nd5
{[%clk 0:00:13.7]} 26... Bxd5 {[%clk 0:00:18]} 27. Qxd5 {[%clk 0:00:13.8]} 27...
Qxd5 {[%clk 0:00:16.9]} 28. Rxd5 {[%clk 0:00:14.4]} 28... Rf6 {[%clk 0:00:07.6]}
29. Bd3 {[%clk 0:00:14]} 29... Ne5 {[%clk 0:00:07.5]} 30. Bc2 {[%clk 0:00:12.7]}
30... Bf8 {[%clk 0:00:07.6]} 31. h3 {[%clk 0:00:12.2]} 31... Rc8 {[%clk
0:00:07.7]} 32. b3 {[%clk 0:00:11]} 32... g6 {[%clk 0:00:07]} 33. Bd4 {[%clk
0:00:11.1]} 33... Kg8 {[%clk 0:00:06.4]} 34. Bxe5 {[%clk 0:00:11.5]} 34... dxe5
{[%clk 0:00:06.9]} 35. Rexe5 {[%clk 0:00:11.7]} 35... b6 {[%clk 0:00:06.6]} 36.
Be4 {[%clk 0:00:10.6]} 36... Bc5+ {[%clk 0:00:06.6]} 37. Kh2 {[%clk 0:00:09.3]}
37... a5 {[%clk 0:00:07]} 38. Bc2 {[%clk 0:00:04.8]} 38... Rff8 {[%clk
0:00:06.9]} 39. Rd3 {[%clk 0:00:04.9]} 39... Rcd8 {[%clk 0:00:07]} 40. Red5
{[%clk 0:00:05.8]} 40... Rxd5 {[%clk 0:00:06.8]} 41. Rxd5 {[%clk 0:00:06.7]}
41... Re8 {[%clk 0:00:07.2]} 42. h4 {[%clk 0:00:06.8]} 42... Re1 {[%clk
0:00:07.2]} 43. Be4 {[%clk 0:00:07]} 43... Bf2 {[%clk 0:00:05.6]} 44. Kh3 {[%clk
0:00:06.4]} 44... h5 {[%clk 0:00:05]} 45. Bxg6 {[%clk 0:00:05.2]} 45... Rh1#
{[%clk 0:00:04.7]} 0-1

[Event "*** Titled Tuesday Blitz"]
[Site "Chess.com"]
[Date "2020.05.12"]
[Round "4"]
[White "Witaliss"]
[Black "Xeniya2005"]
[Result "0-1"]
[WhiteElo "2425"]
[BlackElo "2268"]
[TimeControl "180+1"]
[EndTime "10:39:14 PDT"]
[Termination "Xeniya2005 won on time"]

1. d4 {[%clk 0:03:00.9]} 1... Nf6 {[%clk 0:02:59.4]} 2. c4 {[%clk 0:03:00.6]}
2... e6 {[%clk 0:02:57.6]} 3. Nf3 {[%clk 0:02:59.9]} 3... Bb4+ {[%clk
0:02:55.3]} 4. Nbd2 {[%clk 0:02:58.7]} 4... O-O {[%clk 0:02:48.3]} 5. a3 {[%clk
0:02:57.9]} 5... Bxd2+ {[%clk 0:02:43.1]} 6. Qxd2 {[%clk 0:02:57.9]} 6... d5
{[%clk 0:02:40.8]} 7. b3 {[%clk 0:02:56.6]} 7... b6 {[%clk 0:02:34.2]} 8. g3
{[%clk 0:02:54.4]} 8... Ba6 {[%clk 0:02:22.8]} 9. Qc2 {[%clk 0:02:51.9]} 9...
Nbd7 {[%clk 0:02:13.4]} 10. Bg2 {[%clk 0:02:47.2]} 10... c5 {[%clk 0:02:09.7]}
11. dxc5 {[%clk 0:02:26.6]} 11... Nxc5 {[%clk 0:02:06.4]} 12. b4 {[%clk
0:02:18.3]} 12... Nce4 {[%clk 0:01:58]} 13. cxd5 {[%clk 0:02:17.8]} 13... Rc8
{[%clk 0:01:46.5]} 14. Qb2 {[%clk 0:02:16.9]} 14... Nc3 {[%clk 0:01:24]} 15. Nd4
{[%clk 0:01:44.4]} 15... Nfxd5 {[%clk 0:00:54.1]} 16. b5 {[%clk 0:01:30.8]}
16... Bb7 {[%clk 0:00:44.2]} 17. O-O {[%clk 0:01:29.9]} 17... Qe7 {[%clk
0:00:40.3]} 18. Bd2 {[%clk 0:01:22.8]} 18... Na4 {[%clk 0:00:35.6]} 19. Qb3
{[%clk 0:01:14.8]} 19... Nc5 {[%clk 0:00:31.7]} 20. Qa2 {[%clk 0:01:09.5]} 20...
Rfd8 {[%clk 0:00:29.9]} 21. Rfd1 {[%clk 0:01:03]} 21... Na4 {[%clk 0:00:21.5]}
22. Qb3 {[%clk 0:00:40.2]} 22... e5 {[%clk 0:00:17.4]} 23. Nc6 {[%clk
0:00:36.4]} 23... Bxc6 {[%clk 0:00:16.9]} 24. bxc6 {[%clk 0:00:36.3]} 24... Nc5
{[%clk 0:00:17]} 25. Qc4 {[%clk 0:00:32.1]} 25... e4 {[%clk 0:00:16.5]} 26. Bb4
{[%clk 0:00:29.7]} 26... Nxb4 {[%clk 0:00:15.3]} 27. axb4 {[%clk 0:00:29]} 27...
Ne6 {[%clk 0:00:13.9]} 28. Bxe4 {[%clk 0:00:25.8]} 28... Rc7 {[%clk 0:00:09.5]}
29. Bd5 {[%clk 0:00:21.8]} 29... Rd6 {[%clk 0:00:06.1]} 30. b5 {[%clk
0:00:12.8]} 30... h6 {[%clk 0:00:03.8]} 31. Bxe6 {[%clk 0:00:10.2]} 31... Rxe6
{[%clk 0:00:03]} 32. e3 {[%clk 0:00:09.5]} 32... Re5 {[%clk 0:00:02.7]} 33. Rd5
{[%clk 0:00:06.9]} 33... Rxd5 {[%clk 0:00:02.1]} 34. Qxd5 {[%clk 0:00:05.8]}
34... Kh7 {[%clk 0:00:02.5]} 35. Rd1 {[%clk 0:00:03.1]} 35... g6 {[%clk
0:00:02.9]} 36. Qd6 {[%clk 0:00:02.6]} 36... Qxd6 {[%clk 0:00:02.1]} 37. Rxd6
{[%clk 0:00:01.3]} 37... Re7 {[%clk 0:00:02.7]} 38. Rd7 {[%clk 0:00:01.4]} 38...
Re5 {[%clk 0:00:03.2]} 39. Rxf7+ {[%clk 0:00:01.2]} 39... Kg8 {[%clk 0:00:03.6]}
0-1

[Event "*** Titled Tuesday Blitz"]
[Site "Chess.com"]
[Date "2020.05.12"]
[Round "4"]
[White "Glidzhian_Gor"]
[Black "moro182"]
[Result "0-1"]
[WhiteElo "2471"]
[BlackElo "2667"]
[TimeControl "180+1"]
[EndTime "10:39:15 PDT"]
[Termination "moro182 won by resignation"]

1. e4 {[%clk 0:03:00.9]} 1... e5 {[%clk 0:02:59.9]} 2. Nf3 {[%clk 0:03:00.2]}
2... Nc6 {[%clk 0:03:00.5]} 3. Bb5 {[%clk 0:03:00.1]} 3... a6 {[%clk 0:03:00]}
4. Ba4 {[%clk 0:03:00]} 4... Nf6 {[%clk 0:03:00.6]} 5. d3 {[%clk 0:02:59.9]}
5... b5 {[%clk 0:02:58.7]} 6. Bb3 {[%clk 0:03:00]} 6... Bc5 {[%clk 0:02:59.3]}
7. O-O {[%clk 0:02:59.9]} 7... d6 {[%clk 0:02:56.8]} 8. h3 {[%clk 0:02:59]} 8...
h6 {[%clk 0:02:55.1]} 9. c3 {[%clk 0:02:59.2]} 9... O-O {[%clk 0:02:53.7]} 10.
Re1 {[%clk 0:02:57.6]} 10... Bb6 {[%clk 0:02:53]} 11. Nbd2 {[%clk 0:02:57.6]}
11... Ne7 {[%clk 0:02:51.1]} 12. Nf1 {[%clk 0:02:57.8]} 12... Ng6 {[%clk
0:02:51.5]} 13. Be3 {[%clk 0:02:56.2]} 13... c6 {[%clk 0:02:50.9]} 14. a4 {[%clk
0:02:56.1]} 14... Be6 {[%clk 0:02:33.7]} 15. axb5 {[%clk 0:02:44.5]} 15... Bxe3
{[%clk 0:02:27.4]} 16. Nxe3 {[%clk 0:02:43.4]} 16... axb5 {[%clk 0:02:23.1]} 17.
Bxe6 {[%clk 0:02:10.9]} 17... fxe6 {[%clk 0:02:19.8]} 18. Rxa8 {[%clk
0:02:10.6]} 18... Qxa8 {[%clk 0:02:20.7]} 19. Qb3 {[%clk 0:02:11.1]} 19... Qe8
{[%clk 0:02:05.8]} 20. d4 {[%clk 0:01:58.9]} 20... Nxe4 {[%clk 0:01:52.7]} 21.
dxe5 {[%clk 0:01:58.9]} 21... Rxf3 {[%clk 0:01:32.2]} 22. gxf3 {[%clk
0:01:56.7]} 22... Ng5 {[%clk 0:01:32.3]} 23. Qd1 {[%clk 0:00:19.7]} 23... d5
{[%clk 0:01:19.3]} 24. Ng2 {[%clk 0:00:11.1]} 24... Qf7 {[%clk 0:01:15]} 25. Re3
{[%clk 0:00:08.8]} 25... Nxh3+ {[%clk 0:01:07.9]} 26. Kf1 {[%clk 0:00:09.3]}
26... Qf5 {[%clk 0:01:05.5]} 27. Qd3 {[%clk 0:00:08.2]} 27... Qh5 {[%clk
0:01:03.1]} 28. Qd4 {[%clk 0:00:04]} 28... Ng5 {[%clk 0:01:02.9]} 29. Qg4 {[%clk
0:00:04.2]} 29... Qh1+ {[%clk 0:01:02.3]} 30. Ke2 {[%clk 0:00:04.9]} 30... Qb1
{[%clk 0:00:51.1]} 31. f4 {[%clk 0:00:05.4]} 31... Ne4 {[%clk 0:00:37.2]} 32.
Rxe4 {[%clk 0:00:02]} 32... Qxe4+ {[%clk 0:00:36.3]} 33. Kd2 {[%clk 0:00:02.8]}
33... Kf7 {[%clk 0:00:31]} 34. f3 {[%clk 0:00:03.5]} 34... Qb1 {[%clk
0:00:23.1]} 35. Ne3 {[%clk 0:00:03.8]} 35... Qxb2+ {[%clk 0:00:20.7]} 36. Nc2
{[%clk 0:00:04.6]} 36... Ne7 {[%clk 0:00:16.4]} 37. Qh5+ {[%clk 0:00:04.4]}
37... Kf8 {[%clk 0:00:16.3]} 38. Qh4 {[%clk 0:00:03.4]} 38... b4 {[%clk
0:00:12.5]} 39. cxb4 {[%clk 0:00:03.8]} 39... d4 {[%clk 0:00:13.1]} 40. f5
{[%clk 0:00:03.7]} 40... Qc3+ {[%clk 0:00:12.6]} 41. Kd1 {[%clk 0:00:03.1]}
41... d3 {[%clk 0:00:09.6]} 42. Ne3 {[%clk 0:00:03.6]} 42... Qxe5 {[%clk
0:00:08.8]} 43. Kd2 {[%clk 0:00:03]} 43... Qxe3+ {[%clk 0:00:07.8]} 44. Kxe3
{[%clk 0:00:03.9]} 44... Nxf5+ {[%clk 0:00:08.5]} 0-1

[Event "*** Titled Tuesday Blitz"]
[Site "Chess.com"]
[Date "2020.05.12"]
[Round "4"]
[White "Flawless_Fighter"]
[Black "Biranidun"]
[Result "0-1"]
[WhiteElo "2475"]
[BlackElo "2677"]
[TimeControl "180+1"]
[EndTime "10:39:17 PDT"]
[Termination "Biranidun won on time"]

1. e4 {[%clk 0:03:00.9]} 1... c5 {[%clk 0:02:59.7]} 2. Nf3 {[%clk 0:03:00.8]}
2... d6 {[%clk 0:03:00.2]} 3. d4 {[%clk 0:03:00.3]} 3... cxd4 {[%clk 0:03:01.1]}
4. Nxd4 {[%clk 0:03:01]} 4... Nf6 {[%clk 0:03:01.8]} 5. Nc3 {[%clk 0:03:01.4]}
5... a6 {[%clk 0:03:02.5]} 6. Be3 {[%clk 0:03:00.8]} 6... e5 {[%clk 0:03:01.3]}
7. Nb3 {[%clk 0:03:00.7]} 7... Be6 {[%clk 0:02:59.9]} 8. f3 {[%clk 0:03:00.2]}
8... h5 {[%clk 0:02:58.6]} 9. Qd2 {[%clk 0:02:59.7]} 9... Nbd7 {[%clk
0:02:57.9]} 10. Nd5 {[%clk 0:03:00]} 10... Bxd5 {[%clk 0:02:58]} 11. exd5 {[%clk
0:03:00.9]} 11... g6 {[%clk 0:02:58.9]} 12. Be2 {[%clk 0:02:59.5]} 12... Bg7
{[%clk 0:02:51.9]} 13. O-O {[%clk 0:02:55.9]} 13... b6 {[%clk 0:02:52.1]} 14. c4
{[%clk 0:02:49]} 14... O-O {[%clk 0:02:37.1]} 15. Rac1 {[%clk 0:02:47.1]} 15...
Re8 {[%clk 0:02:36.9]} 16. Na1 {[%clk 0:02:38.2]} 16... e4 {[%clk 0:02:36]} 17.
f4 {[%clk 0:02:38.3]} 17... Ng4 {[%clk 0:02:28.6]} 18. Bxg4 {[%clk 0:02:38.2]}
18... hxg4 {[%clk 0:02:29.5]} 19. b4 {[%clk 0:02:30.5]} 19... a5 {[%clk
0:02:14.5]} 20. a3 {[%clk 0:02:04.5]} 20... axb4 {[%clk 0:02:14.6]} 21. axb4
{[%clk 0:02:05.4]} 21... Ra3 {[%clk 0:02:14.9]} 22. Nc2 {[%clk 0:02:01.7]} 22...
Rd3 {[%clk 0:02:11.9]} 23. Qe2 {[%clk 0:02:00.1]} 23... f5 {[%clk 0:02:04.9]}
24. Rfd1 {[%clk 0:01:47.1]} 24... Rxd1+ {[%clk 0:01:38.8]} 25. Rxd1 {[%clk
0:01:46.2]} 25... Qc7 {[%clk 0:01:37.4]} 26. Nd4 {[%clk 0:01:42.2]} 26... Rc8
{[%clk 0:01:15.5]} 27. Rc1 {[%clk 0:01:19]} 27... Qb7 {[%clk 0:01:01.9]} 28. Ne6
{[%clk 0:01:14.5]} 28... Bf6 {[%clk 0:00:58.6]} 29. Qf2 {[%clk 0:00:52.8]} 29...
b5 {[%clk 0:00:57.5]} 30. Qa2 {[%clk 0:00:28.4]} 30... bxc4 {[%clk 0:00:50.2]}
31. Rxc4 {[%clk 0:00:29.3]} 31... Kf7 {[%clk 0:00:49.1]} 32. Rc6 {[%clk
0:00:19.9]} 32... Ke7 {[%clk 0:00:36.1]} 33. Qc4 {[%clk 0:00:18.3]} 33... Rb8
{[%clk 0:00:29.4]} 34. Rc7 {[%clk 0:00:04.3]} 34... Qxb4 {[%clk 0:00:19.8]} 35.
Qxb4 {[%clk 0:00:04.2]} 35... Rxb4 {[%clk 0:00:19.6]} 36. Kf2 {[%clk 0:00:03.6]}
36... Rb5 {[%clk 0:00:17.6]} 37. Ra7 {[%clk 0:00:02.2]} 37... Rxd5 {[%clk
0:00:17.5]} 38. Nc7 {[%clk 0:00:01.6]} 38... Rd3 {[%clk 0:00:12.3]} 39. Nb5
{[%clk 0:00:02.2]} 39... Ke6 {[%clk 0:00:11.4]} 40. Nc7+ {[%clk 0:00:01.6]}
40... Ke7 {[%clk 0:00:11.9]} 41. Nb5 {[%clk 0:00:02.3]} 41... Rb3 {[%clk
0:00:09.1]} 42. Rb7 {[%clk 0:00:02]} 42... Rb2+ {[%clk 0:00:08.3]} 43. Kf1
{[%clk 0:00:01.7]} 43... d5 {[%clk 0:00:05.3]} 0-1

[Event "*** Titled Tuesday Blitz"]
[Site "Chess.com"]
[Date "2020.05.12"]
[Round "4"]
[White "LawrenceTrent"]
[Black "GMHess"]
[Result "1-0"]
[WhiteElo "2537"]
[BlackElo "2801"]
[TimeControl "180+1"]
[EndTime "10:39:18 PDT"]
[Termination "LawrenceTrent won on time"]

1. d4 {[%clk 0:03:00.6]} 1... g6 {[%clk 0:02:59.4]} 2. e4 {[%clk 0:03:00.3]}
2... Bg7 {[%clk 0:02:59.9]} 3. Nc3 {[%clk 0:03:00.4]} 3... a6 {[%clk 0:03:00]}
4. Be3 {[%clk 0:02:59.3]} 4... e6 {[%clk 0:02:59.9]} 5. h4 {[%clk 0:02:59]} 5...
h6 {[%clk 0:03:00.3]} 6. f4 {[%clk 0:02:58.8]} 6... h5 {[%clk 0:02:54.2]} 7. Nf3
{[%clk 0:02:57.3]} 7... Nh6 {[%clk 0:02:52.8]} 8. Bd3 {[%clk 0:02:54.7]} 8...
Ng4 {[%clk 0:02:49.4]} 9. Qe2 {[%clk 0:02:53.8]} 9... b5 {[%clk 0:02:47.2]} 10.
f5 {[%clk 0:02:49.6]} 10... gxf5 {[%clk 0:02:44.1]} 11. exf5 {[%clk 0:02:48]}
11... Nxe3 {[%clk 0:02:32.8]} 12. Qxe3 {[%clk 0:02:46.2]} 12... Nc6 {[%clk
0:02:14.5]} 13. O-O-O {[%clk 0:02:37.6]} 13... Nxd4 {[%clk 0:02:05.1]} 14. Be4
{[%clk 0:02:22.6]} 14... Nxf3 {[%clk 0:01:56.9]} 15. Qxf3 {[%clk 0:02:21.9]}
15... Rb8 {[%clk 0:01:20.9]} 16. fxe6 {[%clk 0:02:19]} 16... Qf6 {[%clk
0:01:20.7]} 17. exf7+ {[%clk 0:01:39.4]} 17... Kf8 {[%clk 0:01:14.7]} 18. Qxf6
{[%clk 0:01:17.4]} 18... Bxf6 {[%clk 0:01:14.5]} 19. Nd5 {[%clk 0:01:17.9]}
19... Be5 {[%clk 0:01:00.2]} 20. Rhe1 {[%clk 0:01:14.1]} 20... Bb7 {[%clk
0:00:56.6]} 21. Nxc7 {[%clk 0:01:05.6]} 21... Bxc7 {[%clk 0:00:25.1]} 22. Bxb7
{[%clk 0:01:03.4]} 22... Bg3 {[%clk 0:00:20.5]} 23. Re8+ {[%clk 0:00:58.5]}
23... Kxf7 {[%clk 0:00:14.1]} 24. Rxh8 {[%clk 0:00:55.9]} 24... Rxh8 {[%clk
0:00:13.9]} 25. Bxa6 {[%clk 0:00:55.3]} 25... d6 {[%clk 0:00:11.3]} 26. Bxb5
{[%clk 0:00:52.6]} 26... Ke7 {[%clk 0:00:11]} 27. Rd4 {[%clk 0:00:48.3]} 27...
Rf8 {[%clk 0:00:07.9]} 28. Re4+ {[%clk 0:00:42.1]} 28... Be5 {[%clk 0:00:07.9]}
29. c3 {[%clk 0:00:36.9]} 29... Kd8 {[%clk 0:00:06.7]} 30. g4 {[%clk 0:00:35.4]}
30... Bf4+ {[%clk 0:00:05.7]} 31. Kd1 {[%clk 0:00:33.3]} 31... hxg4 {[%clk
0:00:05.8]} 32. Ke2 {[%clk 0:00:31]} 32... g3 {[%clk 0:00:06]} 33. Kf3 {[%clk
0:00:31.3]} 33... Be5+ {[%clk 0:00:06.4]} 34. Kg2 {[%clk 0:00:26]} 34... Rf2+
{[%clk 0:00:06.9]} 35. Kg1 {[%clk 0:00:25.3]} 35... Rxb2 {[%clk 0:00:06.8]} 36.
a4 {[%clk 0:00:24.2]} 36... Bxc3 {[%clk 0:00:06.4]} 37. h5 {[%clk 0:00:24.5]}
37... d5 {[%clk 0:00:06.3]} 38. Rg4 {[%clk 0:00:23.6]} 38... Be5 {[%clk
0:00:06.1]} 39. h6 {[%clk 0:00:23.4]} 39... Rb1+ {[%clk 0:00:03]} 40. Kg2 {[%clk
0:00:23.5]} 40... Rb2+ {[%clk 0:00:03.9]} 41. Kf3 {[%clk 0:00:22.2]} 41... Rf2+
{[%clk 0:00:04.2]} 42. Ke3 {[%clk 0:00:22.7]} 42... d4+ {[%clk 0:00:03.7]} 43.
Ke4 {[%clk 0:00:23.1]} 43... g2 {[%clk 0:00:02.1]} 44. Kxe5 {[%clk 0:00:22.5]}
44... d3 {[%clk 0:00:01.9]} 45. Bxd3 {[%clk 0:00:21.6]} 1-0

[Event "*** Titled Tuesday Blitz"]
[Site "Chess.com"]
[Date "2020.05.12"]
[Round "4"]
[White "ahmadzada13"]
[Black "dragos420"]
[Result "0-1"]
[WhiteElo "2720"]
[BlackElo "2521"]
[TimeControl "180+1"]
[EndTime "10:39:18 PDT"]
[Termination "dragos420 won by checkmate"]

1. e4 {[%clk 0:03:00.9]} 1... e5 {[%clk 0:02:59.8]} 2. Nf3 {[%clk 0:03:01.1]}
2... Nc6 {[%clk 0:03:00.4]} 3. Bb5 {[%clk 0:03:01.3]} 3... g6 {[%clk 0:03:00.5]}
4. d4 {[%clk 0:02:59.7]} 4... exd4 {[%clk 0:02:54.1]} 5. Bg5 {[%clk 0:02:59.8]}
5... Be7 {[%clk 0:02:53.7]} 6. Bxe7 {[%clk 0:03:00]} 6... Qxe7 {[%clk
0:02:54.6]} 7. Bxc6 {[%clk 0:03:00.2]} 7... dxc6 {[%clk 0:02:40.8]} 8. Qxd4
{[%clk 0:03:00.7]} 8... Nf6 {[%clk 0:02:40.8]} 9. Nc3 {[%clk 0:03:01.3]} 9...
O-O {[%clk 0:02:40.7]} 10. O-O-O {[%clk 0:03:00.5]} 10... Be6 {[%clk 0:02:25.8]}
11. e5 {[%clk 0:02:58.4]} 11... Nd5 {[%clk 0:02:24.3]} 12. Ne4 {[%clk 0:02:58]}
12... Rfd8 {[%clk 0:02:14.9]} 13. Nf6+ {[%clk 0:02:44.1]} 13... Nxf6 {[%clk
0:02:04.1]} 14. exf6 {[%clk 0:02:44.7]} 14... Qf8 {[%clk 0:01:31.9]} 15. Qf4
{[%clk 0:02:40.6]} 15... Rd6 {[%clk 0:01:22.4]} 16. h4 {[%clk 0:02:08]} 16...
Rad8 {[%clk 0:01:18.1]} 17. Rde1 {[%clk 0:02:04]} 17... h5 {[%clk 0:01:09.7]}
18. Ng5 {[%clk 0:01:59.9]} 18... Bf5 {[%clk 0:00:56.1]} 19. Qe5 {[%clk
0:00:49.5]} 19... Rd2 {[%clk 0:00:43.1]} 20. Re2 {[%clk 0:00:49.4]} 20... Rxe2
{[%clk 0:00:31.7]} 21. Qxe2 {[%clk 0:00:49.9]} 21... Re8 {[%clk 0:00:27.4]} 22.
Qc4 {[%clk 0:00:46.6]} 22... Be6 {[%clk 0:00:22.8]} 23. Qc3 {[%clk 0:00:32.5]}
23... Qd6 {[%clk 0:00:19.1]} 24. g3 {[%clk 0:00:16.8]} 24... Bd5 {[%clk
0:00:17.7]} 25. Rd1 {[%clk 0:00:16.5]} 25... Re5 {[%clk 0:00:06.5]} 26. f4
{[%clk 0:00:13.7]} 26... Re8 {[%clk 0:00:03.8]} 27. b3 {[%clk 0:00:13.9]} 27...
Qa3+ {[%clk 0:00:02.7]} 28. Kb1 {[%clk 0:00:14]} 28... Qf8 {[%clk 0:00:03.3]}
29. Kb2 {[%clk 0:00:13.7]} 29... b5 {[%clk 0:00:02.4]} 30. Qd4 {[%clk
0:00:13.4]} 30... a5 {[%clk 0:00:02.2]} 31. Rd2 {[%clk 0:00:11.6]} 31... a4
{[%clk 0:00:02.4]} 32. b4 {[%clk 0:00:04]} 32... a3+ {[%clk 0:00:02.9]} 33. Kxa3
{[%clk 0:00:03.6]} 33... Ra8+ {[%clk 0:00:02.9]} 34. Kb2 {[%clk 0:00:04.2]}
34... Rxa2+ {[%clk 0:00:03.6]} 35. Kb1 {[%clk 0:00:04.3]} 35... Ra8 {[%clk
0:00:04.3]} 36. g4 {[%clk 0:00:03.7]} 36... hxg4 {[%clk 0:00:03.6]} 37. h5
{[%clk 0:00:04.2]} 37... gxh5 {[%clk 0:00:03.9]} 38. Rh2 {[%clk 0:00:04.3]}
38... Qh6 {[%clk 0:00:04.2]} 39. Qd3 {[%clk 0:00:03.6]} 39... g3 {[%clk
0:00:04]} 40. Rh3 {[%clk 0:00:02.6]} 40... g2 {[%clk 0:00:03.4]} 41. Rg3 {[%clk
0:00:03]} 41... Qg6 {[%clk 0:00:04.1]} 42. Ne6 {[%clk 0:00:02.3]} 42... g1=Q+
{[%clk 0:00:04.3]} 43. Rxg1 {[%clk 0:00:02.6]} 43... Qxg1+ {[%clk 0:00:05.2]}
44. Kb2 {[%clk 0:00:03]} 44... Qa1# {[%clk 0:00:05.3]} 0-1